Department family,Entity,Date,Expense type,Expense area,Supplier,Transaction number,Amount
Department of Health,University Hospitals of Morecambe Bay NHS Foundation Trust,04-Sep-19,Drugs,Pharmacy,AAH Pharmaceuticals Ltd,100183575,"375,759.37"
Department of Health,University Hospitals of Morecambe Bay NHS Foundation Trust,04-Sep-19,Drugs,Pharmacy,Alliance Healthcare,100182097,"30,327.72"
Department of Health,University Hospitals of Morecambe Bay NHS Foundation Trust,04-Sep-19,Drugs,Pharmacy,Bayer PLC,100183286,"26,220.00"
Department of Health,University Hospitals of Morecambe Bay NHS Foundation Trust,04-Sep-19,Drugs,Pharmacy,Bayer PLC,100183462,"26,220.00"
Department of Health,University Hospitals of Morecambe Bay NHS Foundation Trust,04-Sep-19,Drugs,Pharmacy,Bayer PLC,100183463,"26,220.00"
Department of Health,University Hospitals of Morecambe Bay NHS Foundation Trust,04-Sep-19,Drugs,Pharmacy,Bayer PLC,100183530,"26,220.00"
Department of Health,University Hospitals of Morecambe Bay NHS Foundation Trust,04-Sep-19,Drugs,Pharmacy,Biotest UK Ltd,100183303,"95,000.00"
Department of Health,University Hospitals of Morecambe Bay NHS Foundation Trust,04-Sep-19,Rates,Estates & Facilities,Borough Of Barrow-In-Furness,100183696,"49,560.00"
Department of Health,University Hospitals of Morecambe Bay NHS Foundation Trust,04-Sep-19,CRC Fee,Estates & Facilities,"Department of Business, Energy and Industrial Strategy",100183605,"245,201.70"
Department of Health,University Hospitals of Morecambe Bay NHS Foundation Trust,04-Sep-19,Rates,Estates & Facilities,Lancaster City Council,100183689,"50,400.00"
Department of Health,University Hospitals of Morecambe Bay NHS Foundation Trust,04-Sep-19,Building Contractor,Capital Services,Leck Construction,100183591,"50,493.90"
Department of Health,University Hospitals of Morecambe Bay NHS Foundation Trust,04-Sep-19,Drugs,Pharmacy,Lloyds Pharmacy Limited,100180010,"577,787.00"
Department of Health,University Hospitals of Morecambe Bay NHS Foundation Trust,04-Sep-19,FP10 Prescriptions,Pharmacy,NHS Business Services Authority,100183207,"43,303.51"
Department of Health,University Hospitals of Morecambe Bay NHS Foundation Trust,04-Sep-19,Payroll Services,Workforce,NHS Shared Business Service Ltd,100181024,"32,548.37"
Department of Health,University Hospitals of Morecambe Bay NHS Foundation Trust,04-Sep-19,NHS Product Sales,Trust Wide,NHS Supply Chain,100179693,"211,293.42"
Department of Health,University Hospitals of Morecambe Bay NHS Foundation Trust,04-Sep-19,NHS Product Sales,Trust Wide,NHS Supply Chain,100181009,"248,219.00"
Department of Health,University Hospitals of Morecambe Bay NHS Foundation Trust,04-Sep-19,Maintenance Contract,Endoscopy,NHS Supply Chain,100180398,"28,581.40"
Department of Health,University Hospitals of Morecambe Bay NHS Foundation Trust,04-Sep-19,Engineering Services,Capital Services,Nyke Energy Services Limited,100183596,"48,315.50"
Department of Health,University Hospitals of Morecambe Bay NHS Foundation Trust,04-Sep-19,Agency Medical Staff - Management Costs,Trust Wide,Retinue Solutions Ltd,100182048,"35,275.52"
Department of Health,University Hospitals of Morecambe Bay NHS Foundation Trust,04-Sep-19,Monthly Charge,Information Technology,Sectra Limited,100178787,"37,558.02"
Department of Health,University Hospitals of Morecambe Bay NHS Foundation Trust,04-Sep-19,Rates,Estates & Facilities,South Lakeland District Council,100183745,"25,867.00"
Department of Health,University Hospitals of Morecambe Bay NHS Foundation Trust,04-Sep-19,Medical Physices & Engineering Services,Radiology,The Christie NHS Foundation Trust,100181120,"29,085.00"
Department of Health,University Hospitals of Morecambe Bay NHS Foundation Trust,04-Sep-19,Clinical Waste Recharges,Estates & Facilities,The Leeds Teaching Hospitals NHS Trust,100182988,"51,275.35"
Department of Health,University Hospitals of Morecambe Bay NHS Foundation Trust,05-Sep-19,NHS Product Sales,Trust Wide,NHS Supply Chain,100182641,"200,425.04"
Department of Health,University Hospitals of Morecambe Bay NHS Foundation Trust,11-Sep-19,IT System - Monthly charge,Information Technology,CSC Computer Sciences Ltd,100182036,"45,203.98"
Department of Health,University Hospitals of Morecambe Bay NHS Foundation Trust,11-Sep-19,"Agency Nurses, Midwives & ODPs",Trust Wide,Retinue Solutions Ltd,100183991,"64,411.90"
Department of Health,University Hospitals of Morecambe Bay NHS Foundation Trust,11-Sep-19,Software Maintennace & Support,Information Technology,Software Box,100183946,"161,117.93"
Department of Health,University Hospitals of Morecambe Bay NHS Foundation Trust,11-Sep-19,Recharge Specialist Registrars,Trust Wide,St Helens & Knowsley Hospitals Nhs Trust,100184028,"550,000.00"
Department of Health,University Hospitals of Morecambe Bay NHS Foundation Trust,18-Sep-19,Scans & Xray Reporting,Radiology,4Ways Healthcare,100184359,"46,622.80"
Department of Health,University Hospitals of Morecambe Bay NHS Foundation Trust,18-Sep-19,Drugs,Pharmacy,Bayer PLC,100185236,"26,220.00"
Department of Health,University Hospitals of Morecambe Bay NHS Foundation Trust,18-Sep-19,Drugs,Pharmacy,Bayer PLC,100185953,"26,220.00"
Department of Health,University Hospitals of Morecambe Bay NHS Foundation Trust,18-Sep-19,Drugs,Pharmacy,Bayer PLC,100185955,"26,220.00"
Department of Health,University Hospitals of Morecambe Bay NHS Foundation Trust,18-Sep-19,Drugs,Pharmacy,Bayer PLC,100185314,"26,220.00"
Department of Health,University Hospitals of Morecambe Bay NHS Foundation Trust,18-Sep-19,Laundry,Estates & Facilities,Berendsen UK Ltd,100186151,"36,932.94"
Department of Health,University Hospitals of Morecambe Bay NHS Foundation Trust,18-Sep-19,Orthotics Service,Trust Wide,Blatchford Limited,100177634,"32,717.20"
Department of Health,University Hospitals of Morecambe Bay NHS Foundation Trust,18-Sep-19,Orthotics Service,Trust Wide,Blatchford Limited,100179254,"70,887.25"
Department of Health,University Hospitals of Morecambe Bay NHS Foundation Trust,18-Sep-19,Orthotics Service,Trust Wide,Blatchford Limited,100184703,"70,887.25"
Department of Health,University Hospitals of Morecambe Bay NHS Foundation Trust,18-Sep-19,Managed Service Contract,Corporate,Carveti Partnership Ltd,100185514,"35,135.89"
Department of Health,University Hospitals of Morecambe Bay NHS Foundation Trust,18-Sep-19,Managed Service Contract,Corporate,Carveti Partnership Ltd,100185513,"69,551.98"
Department of Health,University Hospitals of Morecambe Bay NHS Foundation Trust,18-Sep-19,Patient Management Contract,Corporate,CHS Healthcare,100180158,"25,920.00"
Department of Health,University Hospitals of Morecambe Bay NHS Foundation Trust,18-Sep-19,Patient Management Contract,Corporate,CHS Healthcare,100186192,"25,920.00"
Department of Health,University Hospitals of Morecambe Bay NHS Foundation Trust,18-Sep-19,Drugs,Pharmacy,Healthcare At Home Limited,100184099,"34,400.27"
Department of Health,University Hospitals of Morecambe Bay NHS Foundation Trust,18-Sep-19,Drugs,Pharmacy,Healthcare At Home Limited,100185712,"31,538.65"
Department of Health,University Hospitals of Morecambe Bay NHS Foundation Trust,18-Sep-19,Drugs,Pharmacy,Healthcare At Home Limited,100185715,"34,806.94"
Department of Health,University Hospitals of Morecambe Bay NHS Foundation Trust,18-Sep-19,Drugs,Pharmacy,Healthcare At Home Limited,100185716,"33,940.16"
Department of Health,University Hospitals of Morecambe Bay NHS Foundation Trust,18-Sep-19,IT Hardware,Information Technology,ITHealth U.K Ltd,100184153,"40,456.13"
Department of Health,University Hospitals of Morecambe Bay NHS Foundation Trust,18-Sep-19,Building Contractor,Capital Services,Leck Construction,100186182,"49,163.32"
Department of Health,University Hospitals of Morecambe Bay NHS Foundation Trust,18-Sep-19,Contract Management Services,Procurement,Lifecycle,100172751,"84,270.12"
Department of Health,University Hospitals of Morecambe Bay NHS Foundation Trust,18-Sep-19,Diabetes Consumables,Medicine,Medtronic Ltd,100172898,"25,956.97"
Department of Health,University Hospitals of Morecambe Bay NHS Foundation Trust,18-Sep-19,Blood & Blood components contract,Core Clinical,NHS Blood and Transplant,100184018,"54,615.17"
Department of Health,University Hospitals of Morecambe Bay NHS Foundation Trust,18-Sep-19,Blood & Blood components contract,Core Clinical,NHS Blood and Transplant,100184019,"35,630.25"
Department of Health,University Hospitals of Morecambe Bay NHS Foundation Trust,18-Sep-19,FP10 Prescriptions,Pharmacy,NHS Business Services Authority,100184014,"48,387.17"
Department of Health,University Hospitals of Morecambe Bay NHS Foundation Trust,18-Sep-19,Electricity,Estates & Facilities,NPower,100184907,"93,953.76"
Department of Health,University Hospitals of Morecambe Bay NHS Foundation Trust,18-Sep-19,Electricity,Estates & Facilities,NPower,100184896,"36,062.94"
Department of Health,University Hospitals of Morecambe Bay NHS Foundation Trust,18-Sep-19,Electricity,Estates & Facilities,NPower,100184864,"75,891.74"
Department of Health,University Hospitals of Morecambe Bay NHS Foundation Trust,18-Sep-19,Additional Capacity - Elderly,Medicine,Oakfield Nursing Home,100184476,"45,171.48"
Department of Health,University Hospitals of Morecambe Bay NHS Foundation Trust,18-Sep-19,Building Contractor,Capital Services,Pinington Construction,100184172,"33,409.41"
Department of Health,University Hospitals of Morecambe Bay NHS Foundation Trust,18-Sep-19,Agency Medical Staff - Management Costs,Trust Wide,Retinue Solutions Ltd,100182101,"29,892.74"
Department of Health,University Hospitals of Morecambe Bay NHS Foundation Trust,18-Sep-19,Agency Medical Staff - Management Costs,Trust Wide,Retinue Solutions Ltd,100183988,"35,805.41"
Department of Health,University Hospitals of Morecambe Bay NHS Foundation Trust,18-Sep-19,"Agency Nurses, Midwives & ODPs",Trust Wide,Retinue Solutions Ltd,100185307,"72,757.37"
Department of Health,University Hospitals of Morecambe Bay NHS Foundation Trust,18-Sep-19,Recharge Specialist Registrars,Trust Wide,St Helens & Knowsley Hospitals Nhs Trust,100184236,"38,183.20"
Department of Health,University Hospitals of Morecambe Bay NHS Foundation Trust,24-Sep-19,Drugs,Pharmacy,Alliance Healthcare,100187201,"35,508.28"
Department of Health,University Hospitals of Morecambe Bay NHS Foundation Trust,24-Sep-19,Drugs,Pharmacy,Bayer PLC,100186518,"26,220.00"
Department of Health,University Hospitals of Morecambe Bay NHS Foundation Trust,24-Sep-19,Gas,Estates & Facilities,Gazprom Retail Ltd,100187153,"30,202.18"
Department of Health,University Hospitals of Morecambe Bay NHS Foundation Trust,24-Sep-19,Drugs,Pharmacy,Healthcare At Home Limited,100187199,"31,655.32"
Department of Health,University Hospitals of Morecambe Bay NHS Foundation Trust,24-Sep-19,CNST Premium,Corporate,NHS Litigation Authority,100186435,"1,108,237.59"
Department of Health,University Hospitals of Morecambe Bay NHS Foundation Trust,24-Sep-19,NHS Product Sales,Trust Wide,NHS Supply Chain,100183231,"234,535.82"
Department of Health,University Hospitals of Morecambe Bay NHS Foundation Trust,24-Sep-19,NHS Product Sales,Trust Wide,NHS Supply Chain,100184030,"179,748.02"
Department of Health,University Hospitals of Morecambe Bay NHS Foundation Trust,24-Sep-19,Agency Medical Staff - Management Costs,Trust Wide,Retinue Solutions Ltd,100185351,"35,555.81"
Department of Health,University Hospitals of Morecambe Bay NHS Foundation Trust,24-Sep-19,Clinical Waste Recharges,Estates & Facilities,The Leeds Teaching Hospitals NHS Trust,100138533,"34,475.25"
Department of Health,University Hospitals of Morecambe Bay NHS Foundation Trust,24-Sep-19,Clinical Waste Recharges,Estates & Facilities,The Leeds Teaching Hospitals NHS Trust,100184011,"107,923.24"
Department of Health,University Hospitals of Morecambe Bay NHS Foundation Trust,27-Sep-19,Insurance Premium,Corporate,Griffiths & Armour,100187662,"51,844.80"
